Workbook

Sheet 使用指南
B2: 個人現金流量
B3: 此活頁簿有年度、每月和每日現金流量工作表。 選擇最適合您的現金流量類型，或使用全部類型，以協助您獲得個人現金流量的深入解析。
B5: 每日現金流量 | E5: 每月現金流量 | H5: 年度現金流量
B7: 輸入每日實際發生的現金流量金額，並檢閱每月預估總計與年度預估總計。使用此工作表以月或年為單位，了解您的每日支出習慣。 | E7: 輸入您每月實際發生的現金流量或預估剩餘月份的金額，以查看該年度每個月的預計現金流量。 | H7: 在四個工作表中輸入年度現金流量金額：收入、支出、自由支出和儲蓄。 查看每月細項和各項目的比較狀況，以及最重要的是可查看年度與每月數據中的收益為何。

Sheet 每日現金流量
B1: 個人現金流量
C2: 可用現金總計: | D2: =每日現金流量 -> NT$577.84 | F2: 注意：如果您想要在表格中新增每日項目，請預估其每月金額/值，然後在適當的月份欄中輸入該值。
B4: 每日摘要
B5: 總計 | C5: 每天 | D5: 每月 | E5: 年度
B6: 收入 | C6: =SUMIF(每日[類型],$B6,每日[每日]) -> NT$342.47 | D6: =SUMIF(每日[類型],$B6,每日[每月]) -> NT$10,416.80 | E6: =SUMIF(每日[類型],$B6,每日[年度]) -> NT$125,001.55
B7: 支出 | C7: =SUMIF(每日[類型],$B7,每日[每日]) -> NT$136.06 | D7: =SUMIF(每日[類型],$B7,每日[每月]) -> NT$4,138.49 | E7: =SUMIF(每日[類型],$B7,每日[年度]) -> NT$49,661.90
B8: 自由支出 | C8: =SUMIF(每日[類型],$B8,每日[每日]) -> NT$36.29 | D8: =SUMIF(每日[類型],$B8,每日[每月]) -> NT$1,103.82 | E8: =SUMIF(每日[類型],$B8,每日[年度]) -> NT$13,245.85
B9: 儲蓄 | C9: =SUMIF(每日[類型],$B9,每日[每日]) -> NT$63.02 | D9: =SUMIF(每日[類型],$B9,每日[每月]) -> NT$1,916.86 | E9: =SUMIF(每日[類型],$B9,每日[年度]) -> NT$23,002.30
B11: 類型 | C11: 描述 | D11: 每日 | E11: 每月 | F11: 年度
B12: 收入 | C12: 薪水 | D12: NT$246.58 | E12: =每日[[#This Row],[年度]]/12 -> NT$7,500.14 | F12: =每日[[#This Row],[每日]]*365 -> NT$90,001.70
B13: 收入 | C13: 佣金/獎金 | D13: NT$13.70 | E13: =每日[[#This Row],[年度]]/12 -> NT$416.71 | F13: =每日[[#This Row],[每日]]*365 -> NT$5,000.50
B14: 收入 | C14: 其他 1 | D14: NT$82.19 | E14: =每日[[#This Row],[年度]]/12 -> NT$2,499.95 | F14: =每日[[#This Row],[每日]]*365 -> NT$29,999.35
B15: 收入 | C15: 其他 2 | D15: NT$0.00 | E15: =每日[[#This Row],[年度]]/12 -> NT$0.00 | F15: =每日[[#This Row],[每日]]*365 -> NT$0.00
B16: 收入 | C16: 其他 3 | D16: NT$0.00 | E16: =每日[[#This Row],[年度]]/12 -> NT$0.00 | F16: =每日[[#This Row],[每日]]*365 -> NT$0.00
B17: 收入 | C17: 其他 4 | D17: NT$0.00 | E17: =每日[[#This Row],[年度]]/12 -> NT$0.00 | F17: =每日[[#This Row],[每日]]*365 -> NT$0.00
B18: 支出 | C18: 聯邦稅/社會安全福利/醫療保險 | D18: NT$41.10 | E18: =每日[[#This Row],[年度]]/12 -> NT$1,250.13 | F18: =每日[[#This Row],[每日]]*365 -> NT$15,001.50
B19: 支出 | C19: 州所得稅 | D19: NT$6.85 | E19: =每日[[#This Row],[年度]]/12 -> NT$208.35 | F19: =每日[[#This Row],[每日]]*365 -> NT$2,500.25
B20: 支出 | C20: 牌照稅/費用 | D20: NT$0.55 | E20: =每日[[#This Row],[年度]]/12 -> NT$16.73 | F20: =每日[[#This Row],[每日]]*365 -> NT$200.75
B21: 支出 | C21: 汽車還款 | D21: NT$10.96 | E21: =每日[[#This Row],[年度]]/12 -> NT$333.37 | F21: =每日[[#This Row],[每日]]*365 -> NT$4,000.40
B22: 支出 | C22: 貸款/房租 | D22: NT$41.10 | E22: =每日[[#This Row],[年度]]/12 -> NT$1,250.13 | F22: =每日[[#This Row],[每日]]*365 -> NT$15,001.50
B23: 支出 | C23: 保險 | D23: NT$0.68 | E23: =每日[[#This Row],[年度]]/12 -> NT$20.68 | F23: =每日[[#This Row],[每日]]*365 -> NT$248.20
B24: 支出 | C24: 電費 | D24: NT$3.29 | E24: =每日[[#This Row],[年度]]/12 -> NT$100.07 | F24: =每日[[#This Row],[每日]]*365 -> NT$1,200.85
B25: 支出 | C25: 瓦斯費 | D25: NT$1.64 | E25: =每日[[#This Row],[年度]]/12 -> NT$49.88 | F25: =每日[[#This Row],[每日]]*365 -> NT$598.60
B26: 支出 | C26: 水費 | D26: NT$1.64 | E26: =每日[[#This Row],[年度]]/12 -> NT$49.88 | F26: =每日[[#This Row],[每日]]*365 -> NT$598.60
B27: 支出 | C27: 污水處理費 | D27: NT$0.82 | E27: =每日[[#This Row],[年度]]/12 -> NT$24.94 | F27: =每日[[#This Row],[每日]]*365 -> NT$299.30
B28: 支出 | C28: 垃圾處理費 | D28: NT$0.41 | E28: =每日[[#This Row],[年度]]/12 -> NT$12.47 | F28: =每日[[#This Row],[每日]]*365 -> NT$149.65
B29: 支出 | C29: 電話費 | D29: NT$1.64 | E29: =每日[[#This Row],[年度]]/12 -> NT$49.88 | F29: =每日[[#This Row],[每日]]*365 -> NT$598.60
B30: 支出 | C30: 網際網路 | D30: NT$1.64 | E30: =每日[[#This Row],[年度]]/12 -> NT$49.88 | F30: =每日[[#This Row],[每日]]*365 -> NT$598.60
B31: 支出 | C31: 殘疾保險費 | D31: NT$4.11 | E31: =每日[[#This Row],[年度]]/12 -> NT$125.01 | F31: =每日[[#This Row],[每日]]*365 -> NT$1,500.15
B32: 支出 | C32: 食物 | D32: NT$13.70 | E32: =每日[[#This Row],[年度]]/12 -> NT$416.71 | F32: =每日[[#This Row],[每日]]*365 -> NT$5,000.50
B33: 支出 | C33: 服裝 | D33: NT$3.29 | E33: =每日[[#This Row],[年度]]/12 -> NT$100.07 | F33: =每日[[#This Row],[每日]]*365 -> NT$1,200.85
B34: 支出 | C34: 醫療/牙醫/處方藥 | D34: NT$1.64 | E34: =每日[[#This Row],[年度]]/12 -> NT$49.88 | F34: =每日[[#This Row],[每日]]*365 -> NT$598.60
B35: 支出 | C35: 公車 | D35: NT$1.00 | E35: =每日[[#This Row],[年度]]/12 -> NT$30.42 | F35: =每日[[#This Row],[每日]]*365 -> NT$365.00
B36: 支出 | C36: 其他 2 | D36: NT$0.00 | E36: =每日[[#This Row],[年度]]/12 -> NT$0.00 | F36: =每日[[#This Row],[每日]]*365 -> NT$0.00
B37: 支出 | C37: 其他 3 | D37: NT$0.00 | E37: =每日[[#This Row],[年度]]/12 -> NT$0.00 | F37: =每日[[#This Row],[每日]]*365 -> NT$0.00
B38: 支出 | C38: 其他 4 | D38: NT$0.00 | E38: =每日[[#This Row],[年度]]/12 -> NT$0.00 | F38: =每日[[#This Row],[每日]]*365 -> NT$0.00
B39: 自由支出 | C39: 外食 | D39: NT$3.29 | E39: =每日[[#This Row],[年度]]/12 -> NT$100.07 | F39: =每日[[#This Row],[每日]]*365 -> NT$1,200.85
B40: 自由支出 | C40: 禮物 | D40: NT$1.64 | E40: =每日[[#This Row],[年度]]/12 -> NT$49.88 | F40: =每日[[#This Row],[每日]]*365 -> NT$598.60
B41: 自由支出 | C41: 旅遊 | D41: NT$6.16 | E41: =每日[[#This Row],[年度]]/12 -> NT$187.37 | F41: =每日[[#This Row],[每日]]*365 -> NT$2,248.40
B42: 自由支出 | C42: 娛樂 | D42: NT$3.29 | E42: =每日[[#This Row],[年度]]/12 -> NT$100.07 | F42: =每日[[#This Row],[每日]]*365 -> NT$1,200.85
B43: 自由支出 | C43: 個人保健 | D43: NT$0.82 | E43: =每日[[#This Row],[年度]]/12 -> NT$24.94 | F43: =每日[[#This Row],[每日]]*365 -> NT$299.30
B44: 自由支出 | C44: 購物 | D44: NT$5.48 | E44: =每日[[#This Row],[年度]]/12 -> NT$166.68 | F44: =每日[[#This Row],[每日]]*365 -> NT$2,000.20
B45: 自由支出 | C45: 慈善捐款 | D45: NT$1.64 | E45: =每日[[#This Row],[年度]]/12 -> NT$49.88 | F45: =每日[[#This Row],[每日]]*365 -> NT$598.60
B46: 自由支出 | C46: 俱樂部/會員費 | D46: NT$0.82 | E46: =每日[[#This Row],[年度]]/12 -> NT$24.94 | F46: =每日[[#This Row],[每日]]*365 -> NT$299.30
B47: 自由支出 | C47: 居家裝飾 | D47: NT$13.15 | E47: =每日[[#This Row],[年度]]/12 -> NT$399.98 | F47: =每日[[#This Row],[每日]]*365 -> NT$4,799.75
B48: 自由支出 | C48: 其他 1 | D48: NT$0.00 | E48: =每日[[#This Row],[年度]]/12 -> NT$0.00 | F48: =每日[[#This Row],[每日]]*365 -> NT$0.00
B49: 自由支出 | C49: 其他 2 | D49: NT$0.00 | E49: =每日[[#This Row],[年度]]/12 -> NT$0.00 | F49: =每日[[#This Row],[每日]]*365 -> NT$0.00
B50: 儲蓄 | C50: 現金準備 | D50: NT$13.70 | E50: =每日[[#This Row],[年度]]/12 -> NT$416.71 | F50: =每日[[#This Row],[每日]]*365 -> NT$5,000.50
B51: 儲蓄 | C51: 退休金/其他類似項目 | D51: NT$32.88 | E51: =每日[[#This Row],[年度]]/12 -> NT$1,000.10 | F51: =每日[[#This Row],[每日]]*365 -> NT$12,001.20
B52: 儲蓄 | C52: 儲蓄帳戶 | D52: NT$16.44 | E52: =每日[[#This Row],[年度]]/12 -> NT$500.05 | F52: =每日[[#This Row],[每日]]*365 -> NT$6,000.60
B53: 儲蓄 | C53: 其他 1 | D53: NT$0.00 | E53: =每日[[#This Row],[年度]]/12 -> NT$0.00 | F53: =每日[[#This Row],[每日]]*365 -> NT$0.00
B54: 儲蓄 | C54: 其他 2 | D54: NT$0.00 | E54: =每日[[#This Row],[年度]]/12 -> NT$0.00 | F54: =每日[[#This Row],[每日]]*365 -> NT$0.00
B55: 總計 | D55: =SUMIF(每日[類型],"收入",每日[每日])-SUMIF(每日[類型],"<>收入",每日[每日]) -> NT$107.10 | E55: =SUMIF(每日[類型],"收入",每日[每月])-SUMIF(每日[類型],"<>收入",每日[每月]) -> NT$3,257.63 | F55: =SUMIF(每日[類型],"收入",每日[年度])-SUMIF(每日[類型],"<>收入",每日[年度]) -> NT$39,091.50

Sheet 每月現金流量
B1: 個人現金流量
C2: 每月總現金流量: | D2: =至今每月現金流量 -> NT$18,380.00 | F2: 注意：針對每日項目，預估每月金額/值，然後在適當的月份欄中輸入該值。
B4: 類型 | C4: 描述 | D4: 1 月 | E4: 2 月 | F4: 3 月 | G4: 4 月 | H4: 5 月 | I4: 6 月 | J4: 7 月 | K4: 8 月 | L4: 9 月 | M4: 10 月 | N4: 11 月 | O4: 12 月 | P4: 總計
B5: 收入 | C5: 薪水 | D5: NT$7,500.00 | E5: NT$7,500.00 | F5: NT$7,500.00 | G5: NT$7,500.00 | H5: NT$7,500.00 | I5: NT$7,500.00 | P5: =SUM(每月[[#This Row],[1 月]:[12 月]]) -> NT$45,000.00
B6: 收入 | C6: 佣金/獎金 | D6: NT$400.00 | E6: NT$400.00 | F6: NT$500.00 | G6: NT$200.00 | H6: NT$0.00 | I6: NT$600.00 | P6: =SUM(每月[[#This Row],[1 月]:[12 月]]) -> NT$2,100.00
B7: 收入 | C7: 其他 1 | D7: NT$2,500.00 | E7: NT$2,500.00 | F7: NT$2,500.00 | G7: NT$2,500.00 | H7: NT$2,500.00 | I7: NT$2,500.00 | P7: =SUM(每月[[#This Row],[1 月]:[12 月]]) -> NT$15,000.00
B8: 收入 | C8: 其他 2 | D8: NT$0.00 | E8: NT$0.00 | F8: NT$0.00 | G8: NT$0.00 | H8: NT$0.00 | I8: NT$0.00 | P8: =SUM(每月[[#This Row],[1 月]:[12 月]]) -> NT$0.00
B9: 收入 | C9: 其他 3 | D9: NT$0.00 | E9: NT$0.00 | F9: NT$0.00 | G9: NT$0.00 | H9: NT$0.00 | I9: NT$0.00 | P9: =SUM(每月[[#This Row],[1 月]:[12 月]]) -> NT$0.00
B10: 收入 | C10: 其他 4 | D10: NT$0.00 | E10: NT$0.00 | F10: NT$0.00 | G10: NT$0.00 | H10: NT$0.00 | I10: NT$0.00 | P10: =SUM(每月[[#This Row],[1 月]:[12 月]]) -> NT$0.00
B11: 支出 | C11: 聯邦稅/社會安全福利/醫療保險 | D11: NT$1,250.00 | E11: NT$1,250.00 | F11: NT$1,250.00 | G11: NT$1,250.00 | H11: NT$1,250.00 | I11: NT$1,250.00 | P11: =SUM(每月[[#This Row],[1 月]:[12 月]]) -> NT$7,500.00
B12: 支出 | C12: 州所得稅 | D12: NT$208.33 | E12: NT$208.33 | F12: NT$208.33 | G12: NT$208.33 | H12: NT$208.33 | I12: NT$208.33 | P12: =SUM(每月[[#This Row],[1 月]:[12 月]]) -> NT$1,250.00
B13: 支出 | C13: 牌照稅/費用 | D13: NT$16.67 | E13: NT$16.67 | F13: NT$16.67 | G13: NT$16.67 | H13: NT$16.67 | I13: NT$16.67 | P13: =SUM(每月[[#This Row],[1 月]:[12 月]]) -> NT$100.00
B14: 支出 | C14: 汽車還款 | D14: NT$333.33 | E14: NT$333.33 | F14: NT$333.33 | G14: NT$333.33 | H14: NT$333.33 | I14: NT$333.33 | P14: =SUM(每月[[#This Row],[1 月]:[12 月]]) -> NT$2,000.00
B15: 支出 | C15: 貸款/房租 | D15: NT$1,250.00 | E15: NT$1,250.00 | F15: NT$1,250.00 | G15: NT$1,250.00 | H15: NT$1,250.00 | I15: NT$1,250.00 | P15: =SUM(每月[[#This Row],[1 月]:[12 月]]) -> NT$7,500.00
B16: 支出 | C16: 保險 | D16: NT$25.00 | E16: NT$25.00 | F16: NT$25.00 | G16: NT$25.00 | H16: NT$25.00 | I16: NT$25.00 | P16: =SUM(每月[[#This Row],[1 月]:[12 月]]) -> NT$150.00
B17: 支出 | C17: 電費 | D17: NT$100.00 | E17: NT$100.00 | F17: NT$100.00 | G17: NT$100.00 | H17: NT$100.00 | I17: NT$100.00 | P17: =SUM(每月[[#This Row],[1 月]:[12 月]]) -> NT$600.00
B18: 支出 | C18: 瓦斯費 | D18: NT$50.00 | E18: NT$50.00 | F18: NT$50.00 | G18: NT$50.00 | H18: NT$50.00 | I18: NT$50.00 | P18: =SUM(每月[[#This Row],[1 月]:[12 月]]) -> NT$300.00
B19: 支出 | C19: 水費 | D19: NT$50.00 | E19: NT$50.00 | F19: NT$50.00 | G19: NT$50.00 | H19: NT$50.00 | I19: NT$50.00 | P19: =SUM(每月[[#This Row],[1 月]:[12 月]]) -> NT$300.00
B20: 支出 | C20: 污水處理費 | D20: NT$25.00 | E20: NT$25.00 | F20: NT$25.00 | G20: NT$25.00 | H20: NT$25.00 | I20: NT$25.00 | P20: =SUM(每月[[#This Row],[1 月]:[12 月]]) -> NT$150.00
B21: 支出 | C21: 垃圾處理費 | D21: NT$12.50 | E21: NT$12.50 | F21: NT$12.50 | G21: NT$12.50 | H21: NT$12.50 | I21: NT$12.50 | P21: =SUM(每月[[#This Row],[1 月]:[12 月]]) -> NT$75.00
B22: 支出 | C22: 電話費 | D22: NT$50.00 | E22: NT$50.00 | F22: NT$50.00 | G22: NT$50.00 | H22: NT$50.00 | I22: NT$50.00 | P22: =SUM(每月[[#This Row],[1 月]:[12 月]]) -> NT$300.00
B23: 支出 | C23: 網際網路 | D23: NT$50.00 | E23: NT$50.00 | F23: NT$50.00 | G23: NT$50.00 | H23: NT$50.00 | I23: NT$50.00 | P23: =SUM(每月[[#This Row],[1 月]:[12 月]]) -> NT$300.00
B24: 支出 | C24: 殘疾保險費 | D24: NT$125.00 | E24: NT$125.00 | F24: NT$125.00 | G24: NT$125.00 | H24: NT$125.00 | I24: NT$125.00 | P24: =SUM(每月[[#This Row],[1 月]:[12 月]]) -> NT$750.00
B25: 支出 | C25: 食物 | D25: NT$400.00 | E25: NT$500.00 | F25: NT$450.00 | G25: NT$400.00 | H25: NT$450.00 | I25: NT$425.00 | P25: =SUM(每月[[#This Row],[1 月]:[12 月]]) -> NT$2,625.00
B26: 支出 | C26: 服裝 | D26: NT$50.00 | E26: NT$75.00 | F26: NT$100.00 | G26: NT$75.00 | H26: NT$125.00 | I26: NT$75.00 | P26: =SUM(每月[[#This Row],[1 月]:[12 月]]) -> NT$500.00
B27: 支出 | C27: 醫療/牙醫/處方藥 | D27: NT$50.00 | E27: NT$10.00 | F27: NT$25.00 | G27: NT$25.00 | H27: NT$20.00 | I27: NT$70.00 | P27: =SUM(每月[[#This Row],[1 月]:[12 月]]) -> NT$200.00
B28: 支出 | C28: 公車 | D28: NT$30.00 | E28: NT$30.00 | F28: NT$30.00 | G28: NT$20.00 | H28: NT$30.00 | I28: NT$30.00 | P28: =SUM(每月[[#This Row],[1 月]:[12 月]]) -> NT$170.00
B29: 支出 | C29: 其他 2 | D29: NT$0.00 | E29: NT$0.00 | F29: NT$0.00 | G29: NT$0.00 | H29: NT$0.00 | I29: NT$0.00 | P29: =SUM(每月[[#This Row],[1 月]:[12 月]]) -> NT$0.00
B30: 支出 | C30: 其他 3 | D30: NT$0.00 | E30: NT$0.00 | F30: NT$0.00 | G30: NT$0.00 | H30: NT$0.00 | I30: NT$0.00 | P30: =SUM(每月[[#This Row],[1 月]:[12 月]]) -> NT$0.00
B31: 支出 | C31: 其他 4 | D31: NT$0.00 | E31: NT$0.00 | F31: NT$0.00 | G31: NT$0.00 | H31: NT$0.00 | I31: NT$0.00 | P31: =SUM(每月[[#This Row],[1 月]:[12 月]]) -> NT$0.00
B32: 自由支出 | C32: 外食 | D32: NT$50.00 | E32: NT$150.00 | F32: NT$100.00 | G32: NT$50.00 | H32: NT$150.00 | I32: NT$100.00 | P32: =SUM(每月[[#This Row],[1 月]:[12 月]]) -> NT$600.00
B33: 自由支出 | C33: 禮物 | D33: NT$25.00 | E33: NT$75.00 | F33: NT$50.00 | G33: NT$25.00 | H33: NT$75.00 | I33: NT$50.00 | P33: =SUM(每月[[#This Row],[1 月]:[12 月]]) -> NT$300.00
B34: 自由支出 | C34: 旅遊 | D34: NT$0.00 | E34: NT$0.00 | F34: NT$1,000.00 | G34: NT$0.00 | H34: NT$0.00 | I34: NT$1,000.00 | P34: =SUM(每月[[#This Row],[1 月]:[12 月]]) -> NT$2,000.00
B35: 自由支出 | C35: 娛樂 | D35: NT$50.00 | E35: NT$150.00 | F35: NT$100.00 | G35: NT$50.00 | H35: NT$150.00 | I35: NT$100.00 | P35: =SUM(每月[[#This Row],[1 月]:[12 月]]) -> NT$600.00
B36: 自由支出 | C36: 個人保健 | D36: NT$15.00 | E36: NT$25.00 | F36: NT$35.00 | G36: NT$15.00 | H36: NT$25.00 | I36: NT$35.00 | P36: =SUM(每月[[#This Row],[1 月]:[12 月]]) -> NT$150.00
B37: 自由支出 | C37: 購物 | D37: NT$100.00 | E37: NT$200.00 | F37: NT$150.00 | G37: NT$175.00 | H37: NT$150.00 | I37: NT$175.00 | P37: =SUM(每月[[#This Row],[1 月]:[12 月]]) -> NT$950.00
B38: 自由支出 | C38: 慈善捐款 | D38: NT$50.00 | E38: NT$50.00 | F38: NT$50.00 | G38: NT$50.00 | H38: NT$50.00 | I38: NT$50.00 | P38: =SUM(每月[[#This Row],[1 月]:[12 月]]) -> NT$300.00
B39: 自由支出 | C39: 俱樂部/會員費 | D39: NT$25.00 | E39: NT$25.00 | F39: NT$25.00 | G39: NT$25.00 | H39: NT$25.00 | I39: NT$25.00 | P39: =SUM(每月[[#This Row],[1 月]:[12 月]]) -> NT$150.00
B40: 自由支出 | C40: 居家裝飾 | D40: NT$400.00 | E40: NT$400.00 | F40: NT$400.00 | G40: NT$400.00 | H40: NT$400.00 | I40: NT$400.00 | P40: =SUM(每月[[#This Row],[1 月]:[12 月]]) -> NT$2,400.00
B41: 自由支出 | C41: 其他 1 | D41: NT$0.00 | E41: NT$0.00 | F41: NT$0.00 | G41: NT$0.00 | H41: NT$0.00 | I41: NT$0.00 | P41: =SUM(每月[[#This Row],[1 月]:[12 月]]) -> NT$0.00
B42: 自由支出 | C42: 其他 2 | D42: NT$0.00 | E42: NT$0.00 | F42: NT$0.00 | G42: NT$0.00 | H42: NT$0.00 | I42: NT$0.00 | P42: =SUM(每月[[#This Row],[1 月]:[12 月]]) -> NT$0.00
B43: 儲蓄 | C43: 現金準備 | D43: NT$416.67 | E43: NT$416.67 | F43: NT$416.67 | G43: NT$416.67 | H43: NT$416.67 | I43: NT$416.67 | P43: =SUM(每月[[#This Row],[1 月]:[12 月]]) -> NT$2,500.00
B44: 儲蓄 | C44: 退休金/其他類似項目 | D44: NT$1,000.00 | E44: NT$1,000.00 | F44: NT$1,000.00 | G44: NT$1,000.00 | H44: NT$1,000.00 | I44: NT$1,000.00 | P44: =SUM(每月[[#This Row],[1 月]:[12 月]]) -> NT$6,000.00
B45: 儲蓄 | C45: 儲蓄帳戶 | D45: NT$500.00 | E45: NT$500.00 | F45: NT$500.00 | G45: NT$500.00 | H45: NT$500.00 | I45: NT$500.00 | P45: =SUM(每月[[#This Row],[1 月]:[12 月]]) -> NT$3,000.00
B46: 儲蓄 | C46: 其他 1 | D46: NT$0.00 | E46: NT$0.00 | F46: NT$0.00 | G46: NT$0.00 | H46: NT$0.00 | I46: NT$0.00 | P46: =SUM(每月[[#This Row],[1 月]:[12 月]]) -> NT$0.00
B47: 儲蓄 | C47: 其他 2 | D47: NT$0.00 | E47: NT$0.00 | F47: NT$0.00 | G47: NT$0.00 | H47: NT$0.00 | I47: NT$0.00 | P47: =SUM(每月[[#This Row],[1 月]:[12 月]]) -> NT$0.00
B48: 合計 | D48: =SUMIF(每月[類型],"收入",每月[1 月])-SUMIF(每月[類型],"<>收入",每月[1 月]) -> NT$3,692.50 | E48: =SUMIF(每月[類型],"收入",每月[2 月])-SUMIF(每月[類型],"<>收入",每月[2 月]) -> NT$3,247.50 | F48: =SUMIF(每月[類型],"收入",每月[3 月])-SUMIF(每月[類型],"<>收入",每月[3 月]) -> NT$2,522.50 | G48: =SUMIF(每月[類型],"收入",每月[4 月])-SUMIF(每月[類型],"<>收入",每月[4 月]) -> NT$3,427.50 | H48: =SUMIF(每月[類型],"收入",每月[5 月])-SUMIF(每月[類型],"<>收入",每月[5 月]) -> NT$2,887.50 | I48: =SUMIF(每月[類型],"收入",每月[6 月])-SUMIF(每月[類型],"<>收入",每月[6 月]) -> NT$2,602.50 | J48: =SUMIF(每月[類型],"收入",每月[7 月])-SUMIF(每月[類型],"<>收入",每月[7 月]) -> NT$0.00 | K48: =SUMIF(每月[類型],"收入",每月[8 月])-SUMIF(每月[類型],"<>收入",每月[8 月]) -> NT$0.00 | L48: =SUMIF(每月[類型],"收入",每月[9 月])-SUMIF(每月[類型],"<>收入",每月[9 月]) -> NT$0.00 | M48: =SUMIF(每月[類型],"收入",每月[10 月])-SUMIF(每月[類型],"<>收入",每月[10 月]) -> NT$0.00 | N48: =SUMIF(每月[類型],"收入",每月[11 月])-SUMIF(每月[類型],"<>收入",每月[11 月]) -> NT$0.00 | O48: =SUMIF(每月[類型],"收入",每月[12 月])-SUMIF(每月[類型],"<>收入",每月[12 月]) -> NT$0.00 | P48: =SUMIF(每月[類型],"收入",每月[總計])-SUMIF(每月[類型],"<>收入",每月[總計]) -> NT$18,380.00

Sheet 年度現金流量
B1: 個人現金流量
C2: 至今總現金流量: | D2: =至今年度現金流量 -> NT$42,250.00 | G2: 此為年度預估值。如果您想要檢視含有每月預估值的年度金額，請使用這張工作表。使用 [收入]、[支出]、[自由支出] 和 [儲蓄] 工作表來輸入項目。
B4: 收入摘要 | F4: 支出摘要 | J4: 自由支出摘要 | N4: 儲蓄摘要
B5: 年度總計： | C5: =收入!C11 -> NT$125,000.00 | F5: 年度總計： | G5: =支出[[#Totals],[年度 ]] -> NT$46,500.00 | J5: 年度總計： | K5: =自由支出[[#Totals],[年度 ]] -> NT$13,250.00 | N5: 年度總計： | O5: =儲蓄[[#Totals],[年度 ]] -> NT$23,000.00
B8: 每月總計: | C8: =收入!D11 -> NT$10,416.67 | F8: 每月總計： | G8: =支出[[#Totals],[每月 ]] -> NT$3,875.00 | J8: 每月總計： | K8: =自由支出[[#Totals],[每月 ]] -> NT$1,104.17 | N8: 每月總計： | O8: =儲蓄!D10 -> NT$1,916.67
R10: 列標籤 | S10: 年收入 | U10: 列標籤 | V10: 年度加總 | X10: 列標籤 | Y10: 年度加總 | AA10: 列標籤 | AB10: 年度加總

Sheet 收入
B1: 個人現金流量
C2: 至今總現金流量: | D2: =至今年度現金流量 -> NT$42,250.00 | F2: 此為年度預估值。如果您想要檢視含有每月預估值的年度金額，請使用這張工作表。 如果您想要在表格中新增每日項目，請預估其年度金額/值，然後在 [年度] 欄中輸入該值。
B4: 收入 | C4: 年度 | D4: 每月
B5: 薪水 | C5: NT$90,000.00 | D5: =收入[[#This Row],[年度 ]]/12 -> NT$7,500.00
B6: 佣金/獎金 | C6: NT$5,000.00 | D6: =收入[[#This Row],[年度 ]]/12 -> NT$416.67
B7: 其他 1 | C7: NT$30,000.00 | D7: =收入[[#This Row],[年度 ]]/12 -> NT$2,500.00
B8: 其他 2 | C8: NT$0.00 | D8: =收入[[#This Row],[年度 ]]/12 -> NT$0.00
B9: 其他 3 | C9: NT$0.00 | D9: =收入[[#This Row],[年度 ]]/12 -> NT$0.00
B10: 其他 4 | C10: NT$0.00 | D10: =收入[[#This Row],[年度 ]]/12 -> NT$0.00
B11: 合計 | C11: =SUBTOTAL(109,收入[[年度 ]]) -> NT$125,000.00 | D11: =SUBTOTAL(109,收入[[每月 ]]) -> NT$10,416.67

Sheet 支出
B1: 個人現金流量
C2: 至今總現金流量: | D2: =至今年度現金流量 -> NT$42,250.00 | F2: 此為年度預估值。如果您想要檢視含有每月預估值的年度金額，請使用這張工作表 如果您想要在表格中新增每日項目，請預估其年度金額/值，然後在 [年度] 欄中輸入該值。
B4: 支出 | C4: 年度 | D4: 每月
B5: 聯邦稅/社會安全福利/醫療保險 | C5: NT$12,500.00 | D5: =支出[[#This Row],[年度 ]]/12 -> NT$1,041.67
B6: 州所得稅 | C6: NT$2,500.00 | D6: =支出[[#This Row],[年度 ]]/12 -> NT$208.33
B7: 牌照稅/費用 | C7: NT$200.00 | D7: =支出[[#This Row],[年度 ]]/12 -> NT$16.67
B8: 汽車還款 | C8: NT$4,000.00 | D8: =支出[[#This Row],[年度 ]]/12 -> NT$333.33
B9: 貸款/房租 | C9: NT$15,000.00 | D9: =支出[[#This Row],[年度 ]]/12 -> NT$1,250.00
B10: 保險 | C10: NT$250.00 | D10: =支出[[#This Row],[年度 ]]/12 -> NT$20.83
B11: 電費 | C11: NT$1,200.00 | D11: =支出[[#This Row],[年度 ]]/12 -> NT$100.00
B12: 瓦斯費 | C12: NT$600.00 | D12: =支出[[#This Row],[年度 ]]/12 -> NT$50.00
B13: 水費/污水處理費 | C13: NT$600.00 | D13: =支出[[#This Row],[年度 ]]/12 -> NT$50.00
B14: 垃圾處理費 | C14: NT$150.00 | D14: =支出[[#This Row],[年度 ]]/12 -> NT$12.50
B15: 電話費 | C15: NT$600.00 | D15: =支出[[#This Row],[年度 ]]/12 -> NT$50.00
B16: 網際網路 | C16: NT$600.00 | D16: =支出[[#This Row],[年度 ]]/12 -> NT$50.00
B17: 殘疾保險費 | C17: NT$1,500.00 | D17: =支出[[#This Row],[年度 ]]/12 -> NT$125.00
B18: 食物 | C18: NT$5,000.00 | D18: =支出[[#This Row],[年度 ]]/12 -> NT$416.67
B19: 服裝 | C19: NT$1,200.00 | D19: =支出[[#This Row],[年度 ]]/12 -> NT$100.00
B20: 醫療/牙醫/處方藥 | C20: NT$600.00 | D20: =支出[[#This Row],[年度 ]]/12 -> NT$50.00
B21: 其他 1 | C21: NT$0.00 | D21: =支出[[#This Row],[年度 ]]/12 -> NT$0.00
B22: 其他 2 | C22: NT$0.00 | D22: =支出[[#This Row],[年度 ]]/12 -> NT$0.00
B23: 合計 | C23: =SUBTOTAL(109,支出[[年度 ]]) -> NT$46,500.00 | D23: =SUBTOTAL(109,支出[[每月 ]]) -> NT$3,875.00

Sheet 自由支出
B1: 個人現金流量
C2: 至今總現金流量: | D2: =至今年度現金流量 -> NT$42,250.00 | F2: 此為年度預估值。如果您想要檢視含有每月預估值的年度金額，請使用這張工作表 如果您想要在表格中新增每日項目，請預估其年度金額/值，然後在 [年度] 欄中輸入該值。
B4: 自由支出 | C4: 年度 | D4: 每月
B5: 用餐 | C5: NT$1,200.00 | D5: =自由支出[[#This Row],[年度 ]]/12 -> NT$100.00
B6: 禮物 | C6: NT$600.00 | D6: =自由支出[[#This Row],[年度 ]]/12 -> NT$50.00
B7: 旅遊 | C7: NT$2,250.00 | D7: =自由支出[[#This Row],[年度 ]]/12 -> NT$187.50
B8: 娛樂 | C8: NT$1,200.00 | D8: =自由支出[[#This Row],[年度 ]]/12 -> NT$100.00
B9: 個人保健 | C9: NT$300.00 | D9: =自由支出[[#This Row],[年度 ]]/12 -> NT$25.00
B10: 購物 | C10: NT$2,000.00 | D10: =自由支出[[#This Row],[年度 ]]/12 -> NT$166.67
B11: 慈善捐款 | C11: NT$600.00 | D11: =自由支出[[#This Row],[年度 ]]/12 -> NT$50.00
B12: 俱樂部/會員費 | C12: NT$300.00 | D12: =自由支出[[#This Row],[年度 ]]/12 -> NT$25.00
B13: 居家裝飾 | C13: NT$4,800.00 | D13: =自由支出[[#This Row],[年度 ]]/12 -> NT$400.00
B14: 其他 1 | C14: NT$0.00 | D14: =自由支出[[#This Row],[年度 ]]/12 -> NT$0.00
B15: 其他 2 | C15: NT$0.00 | D15: =自由支出[[#This Row],[年度 ]]/12 -> NT$0.00
B16: 合計 | C16: =SUBTOTAL(109,自由支出[[年度 ]]) -> NT$13,250.00 | D16: =SUBTOTAL(109,自由支出[[每月 ]]) -> NT$1,104.17

Sheet 儲蓄
B1: 個人現金流量
C2: 至今總現金流量: | D2: =至今年度現金流量 -> NT$42,250.00 | F2: 此為年度預估值。如果您想要檢視含有每月預估值的年度金額，請使用這張工作表 如果您想要在表格中新增每日項目，請預估其年度金額/值，然後在 [年度] 欄中輸入該值。
B4: 儲蓄 | C4: 年度 | D4: 每月
B5: 現金準備 | C5: NT$5,000.00 | D5: =儲蓄[[#This Row],[年度 ]]/12 -> NT$416.67
B6: 退休金/其他類似項目 | C6: NT$12,000.00 | D6: =儲蓄[[#This Row],[年度 ]]/12 -> NT$1,000.00
B7: 儲蓄/投資 | C7: NT$6,000.00 | D7: =儲蓄[[#This Row],[年度 ]]/12 -> NT$500.00
B8: 其他 1 | C8: NT$0.00 | D8: =儲蓄[[#This Row],[年度 ]]/12 -> NT$0.00
B9: 其他 2 | C9: NT$0.00 | D9: =儲蓄[[#This Row],[年度 ]]/12 -> NT$0.00
B10: 合計 | C10: =SUBTOTAL(109,儲蓄[[年度 ]]) -> NT$23,000.00 | D10: =SUBTOTAL(109,儲蓄[[每月 ]]) -> NT$1,916.67
